fUST/lending_fUST_20250129
["ID","MTS","AMOUNT","RATE_DAILY","PERIOD"]
[350769532,1738116632780,-500.0,0.00016516,2]
[350769533,1738116632790,-500.0,0.00016516,2]
[350769534,1738116632799,-500.0,0.00016516,2]
[350769535,1738116632809,-500.0,0.00016516,2]
[350769536,1738116632818,-500.0,0.00016516,2]
[350769537,1738116632827,-500.0,0.00016516,2]
[350769538,1738116632836,-500.0,0.00016516,2]
[350769539,1738116632846,-500.0,0.00016516,2]
[350769540,1738116632856,-500.0,0.00016516,2]
[350769541,1738116632866,-500.0,0.00016516,2]
[350769542,1738116632875,-500.0,0.00016516,2]
[350769543,1738116632885,-500.0,0.00016516,2]
[350769544,1738116632895,-500.0,0.00016516,2]
[350769545,1738116632905,-500.0,0.00016516,2]
[350769546,1738116632918,-500.0,0.00016516,2]
[350769547,1738116632928,-500.0,0.00016516,2]
[350769548,1738116632938,-500.0,0.00016516,2]
[350769549,1738116632947,-280.96665401,0.00016516,2]
[350769550,1738116632957,-538.54773892,0.00016516,2]
[350769551,1738116632967,-500.0,0.00016516,2]
[350769552,1738116632976,-500.0,0.00016516,2]
[350769553,1738116632986,-500.0,0.00016516,2]
[350769554,1738116632996,-500.0,0.00016516,2]
[350769555,1738116633006,-500.0,0.00016516,2]
[350769556,1738116633016,-500.0,0.00016516,2]
[350769557,1738116633025,-500.0,0.00016516,2]
[350769558,1738116633035,-500.0,0.00016516,2]
[350769559,1738116633045,-500.0,0.00016516,2]
[350769560,1738116633055,-500.0,0.00016516,2]
[350769561,1738116633064,-500.0,0.00016516,2]
[350769562,1738116633074,-500.0,0.00016516,2]
[350769563,1738116633084,-500.0,0.00016516,2]
[350769564,1738116633095,-500.0,0.00016516,2]
[350769565,1738116633104,-500.0,0.00016516,2]
[350769566,1738116633114,-500.0,0.00016516,2]
[350769567,1738116633123,-500.0,0.00016516,2]
[350769568,1738116633133,-500.0,0.00016516,2]
[350769569,1738116633143,-500.0,0.00016516,2]
[350769570,1738116633152,-500.0,0.00016516,2]
[350769571,1738116633162,-500.0,0.00016516,2]
[350769572,1738116633172,-500.0,0.00016516,2]
[350769573,1738116633181,-500.0,0.00016516,2]
[350769574,1738116633191,-403.85477389,0.00016516,2]
[350769575,1738116633201,-500.0,0.00016517,2]
[350769576,1738116633210,-505.25238803,0.00016517,2]
[350769577,1738116633220,-500.0,0.00016517,2]
[350769578,1738116633229,-559.55561352,0.00016517,2]
[350769579,1738116633240,-500.0,0.00016517,2]
[350769580,1738116633249,-509.40697367,0.00016517,2]
[350769581,1738116633259,-500.0,0.00016517,2]
[350769582,1738116633268,-500.0,0.00016517,2]
[350769583,1738116633278,-500.0,0.00016517,2]
[350769584,1738116633288,-500.0,0.00016517,2]
[350769585,1738116633298,-502.76109997,0.00016518,2]
[350769586,1738116633309,-503.86805826,0.00016518,2]
[350769587,1738116633318,-500.0,0.00016518,2]
[350769588,1738116633327,-504.51549918,0.00016518,2]
[350769589,1738116633337,-506.98263224,0.00016518,2]
[350769590,1738116633346,-508.91746325,0.00016518,2]
[350769591,1738116633355,-502.13927598,0.00016518,2]
[350769592,1738116633364,-500.0,0.00016518,2]
[350769593,1738116633374,-500.0,0.00016518,2]
[350769594,1738116633384,-506.37773859,0.00016518,2]
[350769595,1738116633393,-500.0,0.00016518,2]
[350769596,1738116633403,-505.44295857,0.00016518,2]
[350769597,1738116633412,-507.38793785,0.00016518,2]
[350769598,1738116633422,-574.334888,0.00016518,2]
[350769599,1738116633431,-500.0,0.00016518,2]
[350769600,1738116633441,-505.4454754,0.00016518,2]
[350769601,1738116633451,-500.0,0.00016518,2]
[350769602,1738116633460,-500.0,0.00016518,2]
[350769603,1738116633469,-500.0,0.00016518,2]
[350769604,1738116633478,-500.0,0.00016518,2]
[350769605,1738116633488,-505.13788862,0.00016518,2]
[350769606,1738116633498,-634.48019151,0.00016518,2]
[350769607,1738116633508,-506.54723929,0.00016518,2]
[350769608,1738116633517,-506.86615377,0.00016518,2]
[350769609,1738116633527,-500.0,0.00016518,2]
[350769610,1738116633537,-508.33003483,0.00016518,2]
[350769611,1738116633547,-500.0,0.00016518,2]
[350769612,1738116633556,-500.0,0.00016518,2]
[350769613,1738116633566,-500.0,0.00016518,2]
[350769614,1738116633576,-504.36960575,0.00016518,2]
[350769615,1738116633586,-630.8465654,0.00016518,2]
[350769616,1738116633595,-503.12620767,0.00016518,2]
[350769617,1738116633605,-500.0,0.00016518,2]
[350769618,1738116633614,-504.7542381,0.00016518,2]
[350769619,1738116633623,-510.00877473,0.00016518,2]
[350769620,1738116633633,-504.34064855,0.00016518,2]
[350769621,1738116633642,-506.92996998,0.00016518,2]
[350769622,1738116633652,-500.0,0.00016518,2]
[350769623,1738116633662,-501.00012408,0.00016518,2]
[350769624,1738116633671,-500.77457682,0.00016518,2]
[350769625,1738116633680,-529.39,0.00016518,2]
[350769626,1738116633690,-500.0,0.00016518,2]
[350769627,1738116633699,-501.79287872,0.00016518,2]
[350769628,1738116633708,-500.0,0.00016518,2]
[350769629,1738116633718,-420.81532605,0.00016518,2]
[350769630,1738116633727,-500.0,0.00016518,2]
[350769631,1738116633737,-505.64801305,0.00016518,2]
[350769632,1738116633746,-509.29056952,0.00016518,2]
[350769633,1738116633756,-500.0,0.00016518,2]
[350769634,1738116633765,-500.0,0.00016518,2]
[350769635,1738116633775,-501.76125287,0.00016518,2]
[350769636,1738116633785,-500.0,0.00016518,2]
[350769637,1738116633795,-259.28945983,0.00016518,2]
[350769638,1738116633805,-500.0,0.00016518,2]
[350769639,1738116633816,-246.14012823,0.00016518,2]
[350769640,1738116633826,-211.00697624,0.00016519,2]
[350769641,1738116633836,-500.0,0.00016519,2]
[350769642,1738116633846,-506.63617438,0.00016519,2]
[350769643,1738116633856,-500.0,0.00016519,2]
[350769644,1738116633866,-522.04409619,0.00016519,2]
[350769645,1738116633877,-510.5546128,0.00016519,2]
[350769646,1738116633887,-508.36664293,0.00016519,2]
[350769647,1738116633897,-506.2689481,0.00016519,2]
[350769648,1738116633907,-417.38311625,0.00016519,2]
[350769649,1738116633918,-512.68391259,0.00016519,2]
[350769650,1738116633930,-500.0,0.00016519,2]
[350769651,1738116633940,-511.27007404,0.00016519,2]
[350769652,1738116633951,-519.06265467,0.00016519,2]
[350769653,1738116633963,-569.78289302,0.00016519,2]
[350769654,1738116633974,-500.0,0.00016519,2]
[350769655,1738116633984,-500.0,0.00016519,2]
[350769656,1738116633995,-500.0,0.00016519,2]
[350769657,1738116634007,-509.73782872,0.00016519,2]
[350769658,1738116634019,-513.73022192,0.00016519,2]
[350769659,1738116634030,-514.26175579,0.00016519,2]
[350769660,1738116634045,-510.99321067,0.00016519,2]
[350769661,1738116634056,-510.31795419,0.00016519,2]
[350769662,1738116634067,-500.0,0.00016519,2]
[350769663,1738116634078,-500.0,0.00016519,2]
[350769664,1738116634088,-636.12801772,0.00016519,2]
[350769665,1738116634098,-515.92324238,0.00016519,2]
[350769666,1738116634110,-509.69986795,0.00016519,2]
[350769667,1738116634120,-585.40348195,0.00016519,2]
[350769668,1738116634130,-545.06421668,0.00016519,2]
[350769669,1738116634140,-514.91052539,0.00016519,2]
[350769670,1738116634151,-519.24946928,0.00016519,2]
[350769671,1738116634161,-53.99112613,0.00016519,2]
[350769672,1738116634176,-446.00887387,0.00016519,2]
[350769673,1738116634185,-500.0,0.00016519,2]
[350769674,1738116634195,-516.94780603,0.00016519,2]
[350769675,1738116634204,-642.42016156,0.00016519,2]
[350769676,1738116634214,-505.52380845,0.00016519,2]
[350769677,1738116634224,-510.77939525,0.00016519,2]
[350769678,1738116634234,-500.0,0.00016519,2]
[350769679,1738116634244,-510.58115814,0.00016519,2]
[350769680,1738116634254,-511.57900964,0.00016519,2]
[350769681,1738116634264,-520.12562991,0.00016519,2]
[350769682,1738116634273,-512.74423779,0.00016519,2]
[350769683,1738116634283,-500.0,0.00016519,2]
[350769684,1738116634296,-507.58818244,0.00016519,2]
[350769685,1738116634305,-516.32966034,0.00016519,2]
[350769686,1738116634315,-515.98451717,0.00016519,2]
[350769687,1738116634324,-500.0,0.00016519,2]
[350769688,1738116634335,-503.96986232,0.00016519,2]
[350769689,1738116634344,-504.74312121,0.00016519,2]
[350769690,1738116634354,-509.88996917,0.00016519,2]
[350769691,1738116634365,-163.0308383,0.00016519,2]
[350769692,1738116634375,-529.12787,0.00016519,2]
[350769693,1738116634385,-502.36879432,0.00016519,2]
[350769694,1738116634396,-511.39203833,0.00016519,2]
[350769695,1738116634405,-502.81874583,0.00016519,2]
[350769696,1738116634415,-513.99305724,0.00016519,2]
[350769697,1738116634425,-500.0,0.00016519,2]
[350769698,1738116634436,-505.89115654,0.00016519,2]
[350769699,1738116634445,-506.90180271,0.00016519,2]
[350769700,1738116634455,-500.0,0.00016519,2]
[350769701,1738116634465,-504.62659927,0.00016519,2]
[350769702,1738116634474,-4168.17,0.00016519,2]
[350769703,1738116634483,-518.10170976,0.00016519,2]
[350769704,1738116634495,-506.06697782,0.00016519,2]
[350769705,1738116634504,-509.37914189,0.00016519,2]
[350769706,1738116634514,-500.0,0.00016519,2]
[350769707,1738116634524,-510.6249398,0.00016519,2]
[350769708,1738116634534,-500.0,0.00016519,2]
[350769709,1738116634545,-503.30885668,0.00016519,2]
[350769710,1738116634554,-506.23293047,0.00016519,2]
[350769711,1738116634565,-510.67071404,0.00016519,2]
[350769712,1738116634574,-508.68778147,0.00016519,2]
[350769713,1738116634584,-502.73500177,0.00016519,2]
[350769714,1738116634594,-500.0,0.00016519,2]
[350769715,1738116634604,-502.33078458,0.00016519,2]
[350769716,1738116634614,-504.52730465,0.00016519,2]
[350769717,1738116634624,-509.16522069,0.00016519,2]
[350769718,1738116634634,-501.83974012,0.00016519,2]
[350769719,1738116634643,-504.31183728,0.00016519,2]
[350769720,1738116634653,-506.19019096,0.00016519,2]
[350769721,1738116634663,-506.68910399,0.00016519,2]
[350769722,1738116634673,-505.30637111,0.00016519,2]
[350769723,1738116634683,-628.39731762,0.00016519,2]
[350769724,1738116634692,-513.75375781,0.00016519,2]
[350769725,1738116634702,-502.74241188,0.00016519,2]
[350769726,1738116634712,-500.0,0.00016519,2]
[350769727,1738116634722,-503.29941677,0.00016519,2]
[350769728,1738116634731,-581.65888171,0.00016519,2]
[350769729,1738116634740,-505.00337967,0.00016519,2]
[350769730,1738116634750,-501.60804143,0.00016519,2]
[350769731,1738116634760,-3000.0,0.0001652,2]
[350769732,1738116634769,-500.0,0.00016528,2]
[350769733,1738116634779,-500.0,0.00016529,2]
[350769734,1738116634791,-556.78044736,0.00016529,2]
[350769735,1738116634801,-500.0,0.00016529,2]
[350769736,1738116634810,-582.71115547,0.00016529,2]
[350769737,1738116634820,-502.14217508,0.00016529,2]
[350769738,1738116634830,-502.44347396,0.00016529,2]
[350769739,1738116634839,-500.0,0.00016529,2]
[350769740,1738116634849,-440.63557983,0.00016529,2]
[350769741,1738116634941,-59.36442017,0.00016529,2]
[350769742,1738116634951,-272.32219955,0.00016529,2]
[350769743,1738116634961,-503.62957129,0.00016529,2]
[350769744,1738116634971,-266.86632099,0.00016529,2]
[350769790,1738116637948,-512.9,0.00016518,2]
[350769792,1738116637959,-236.03992085,0.00016529,2]
[350769794,1738116637969,-51.9492731,0.00016529,2]
[350769802,1738116638032,-451.69243413,0.00016529,2]
[350769803,1738116638043,-504.29768973,0.00016529,2]
[350769805,1738116638053,-502.18187749,0.00016529,2]
[350769808,1738116638063,-502.41284449,0.00016529,2]
[350769810,1738116638073,-502.13632654,0.00016529,2]
[350769812,1738116638083,-505.34900326,0.00016529,2]
[350769814,1738116638093,-502.46872153,0.00016529,2]
[350769816,1738116638103,-513.4052818,0.00016529,2]
[350769818,1738116638112,-167.75535203,0.00016529,2]
[350769820,1738116638122,-502.07805477,0.00016529,2]
[350769822,1738116638131,-500.0,0.00016529,2]
[350769823,1738116638140,-509.96545804,0.00016529,2]
[350769825,1738116638150,-500.68447621,0.00016529,2]
[350769828,1738116638159,-673.64995624,0.0001653,2]
[350769830,1738116638172,-2326.35004376,0.0001653,2]
[350769832,1738116638181,-531.24030199,0.0001654,2]
[350769834,1738116638196,-2468.75969801,0.0001654,2]
[350769836,1738116638205,-3000.0,0.0001655,2]
[350769838,1738116638215,-500.0,0.00016557,2]
[350769840,1738116638224,-618.53471303,0.00016557,2]
[350769842,1738116638235,-500.0,0.00016558,2]
[350769844,1738116638245,-500.0,0.00016558,2]
[350769846,1738116638255,-500.0,0.00016558,2]
[350769848,1738116638264,-500.0,0.00016558,2]
[350769850,1738116638274,-500.0,0.00016558,2]
[350769852,1738116638285,-500.0,0.00016558,2]
[350769855,1738116638300,-500.0,0.00016558,2]
[350769857,1738116638309,-500.0,0.00016558,2]
[350769858,1738116638319,-500.0,0.00016558,2]
[350769860,1738116638328,-500.0,0.00016558,2]
[350769862,1738116638337,-500.0,0.00016558,2]
[350769864,1738116638347,-500.0,0.00016558,2]
[350769867,1738116638356,-501.86936069,0.00016558,2]
[350769868,1738116638366,-500.0,0.00016558,2]
[350769871,1738116638376,-500.0,0.00016558,2]
[350769873,1738116638385,-500.0,0.00016558,2]
[350769875,1738116638395,-500.0,0.00016558,2]
[350769877,1738116638404,-500.0,0.00016558,2]
[350769878,1738116638414,-500.0,0.00016558,2]
[350769881,1738116638423,-500.0,0.00016558,2]
[350769883,1738116638433,-500.0,0.00016558,2]
[350769884,1738116638442,-500.0,0.00016558,2]
[350769887,1738116638451,-500.0,0.00016558,2]
[350769888,1738116638461,-500.0,0.00016558,2]
[350769890,1738116638470,-500.0,0.00016558,2]
[350769893,1738116638481,-328.99306964,0.00016558,2]
[350769894,1738116638489,-500.0,0.00016558,2]
[350769896,1738116638499,-500.0,0.00016558,2]
[350769898,1738116638508,-500.0,0.00016558,2]
[350769900,1738116638518,-500.0,0.00016558,2]
[350769902,1738116638527,-500.0,0.00016558,2]
[350769904,1738116638536,-500.0,0.00016558,2]
[350769906,1738116638546,-204.81500148,0.00016558,2]
[350769937,1738116639902,-503.50197486,0.00016517,2]
[350769938,1738116639913,-511.18045594,0.00016519,2]
[350769939,1738116639925,-295.18499852,0.00016558,2]
[350769940,1738116639935,-500.0,0.00016558,2]
[350769941,1738116639946,-500.0,0.00016558,2]
[350769942,1738116639955,-500.0,0.00016558,2]
[350769943,1738116639966,-500.0,0.00016558,2]
[350769944,1738116639976,-500.0,0.00016558,2]
[350769945,1738116639985,-500.0,0.00016558,2]
[350769946,1738116639996,-500.0,0.00016558,2]
[350769947,1738116640005,-500.0,0.00016558,2]
[350769948,1738116640015,-500.0,0.00016558,2]
[350769949,1738116640025,-500.0,0.00016558,2]
[350769950,1738116640034,-500.0,0.00016558,2]
[350769951,1738116640045,-500.0,0.00016558,2]
[350769952,1738116640054,-500.0,0.00016558,2]
[350769953,1738116640063,-500.0,0.00016558,2]
[350769954,1738116640073,-500.0,0.00016558,2]
[350769955,1738116640083,-500.0,0.00016558,2]
[350769956,1738116640092,-500.0,0.00016558,2]
[350769957,1738116640102,-500.0,0.00016558,2]
[350769958,1738116640112,-405.7,0.00016558,2]
[350769959,1738116640121,-533.87024203,0.00016558,2]
[350769960,1738116640131,-533.87024203,0.00016558,2]
[350769961,1738116640142,-533.87024203,0.00016558,2]
[350769962,1738116640151,-533.87024203,0.00016558,2]
[350769963,1738116640160,-533.87024203,0.00016558,2]
[350769964,1738116640170,-533.87024203,0.00016558,2]
[350769965,1738116640180,-533.87024203,0.00016558,2]
[350769966,1738116640189,-533.87024203,0.00016558,2]
[350769967,1738116640199,-533.87024203,0.00016558,2]
[350769968,1738116640208,-533.87024203,0.00016558,2]
[350769969,1738116640218,-533.87024203,0.00016558,2]
[350769970,1738116640228,-533.87024203,0.00016558,2]
[350769971,1738116640237,-533.87024203,0.00016558,2]
[350769972,1738116640246,-533.87024203,0.00016558,2]
[350769973,1738116640256,-533.87024203,0.00016558,2]
[350769974,1738116640265,-533.87024203,0.00016558,2]
[350769975,1738116640275,-533.87024203,0.00016558,2]
[350769976,1738116640284,-533.87024203,0.00016558,2]
[350769977,1738116640294,-533.87024203,0.00016558,2]
[350769978,1738116640304,-533.87024203,0.00016558,2]
[350769979,1738116640313,-533.87024203,0.00016558,2]
[350769980,1738116640323,-533.87024203,0.00016558,2]
[350769981,1738116640332,-533.87024203,0.00016558,2]
[350769982,1738116640342,-533.87024203,0.00016558,2]
[350769983,1738116640351,-533.87024203,0.00016558,2]
[350769984,1738116640361,-533.87024203,0.00016558,2]
[350769985,1738116640370,-533.87024203,0.00016558,2]
[350769986,1738116640380,-533.87024203,0.00016558,2]
[350769987,1738116640390,-533.87024203,0.00016558,2]
[350769988,1738116640400,-533.87024203,0.00016558,2]
[350769989,1738116640410,-533.87024203,0.00016558,2]
[350769990,1738116640420,-533.87024203,0.00016558,2]
[350769991,1738116640430,-533.87024203,0.00016558,2]
[350769992,1738116640439,-533.87024203,0.00016558,2]
[350769993,1738116640448,-533.87024203,0.00016558,2]
[350769994,1738116640458,-533.87024203,0.00016558,2]
[350769995,1738116640468,-533.87024203,0.00016558,2]
[350769996,1738116640478,-533.87024203,0.00016558,2]
[350769997,1738116640501,-533.87024203,0.00016558,2]
[350769998,1738116640511,-533.87024203,0.00016558,2]
[350769999,1738116640522,-3000.0,0.0001656,2]
[350770000,1738116640531,-3000.0,0.0001657,2]
[350770001,1738116640542,-335.53818358,0.00016573,2]
[350770002,1738116640553,-3000.0,0.0001658,2]
[350770003,1738116640564,-3000.0,0.0001659,2]
[350770004,1738116640574,-3000.0,0.000166,2]
[350770005,1738116640584,-3000.0,0.0001661,2]
[350770006,1738116640594,-3000.0,0.0001662,2]
[350770007,1738116640605,-3000.0,0.0001663,2]
[350770008,1738116640616,-3000.0,0.0001664,2]
[350770009,1738116640626,-500.0,0.00016646,2]
[350770010,1738116640637,-500.0,0.00016646,2]
[350770011,1738116640647,-500.0,0.00016646,2]
[350770012,1738116640657,-161.88682877,0.00016646,2]
[350770013,1738116640667,-510.19402301,0.00016646,2]
[350770014,1738116640678,-500.0,0.00016646,2]
[350770015,1738116640688,-5128.814502,0.0001665,2]
[350770016,1738116640698,-295.45052208,0.00016654,2]
[350770017,1738116640708,-500.0,0.00016654,2]
[350770018,1738116640718,-422.78722132,0.00016654,2]
[350770019,1738116640728,-500.0,0.00016654,2]
[350770020,1738116640738,-500.0,0.00016654,2]
[350770021,1738116640749,-155.84318248,0.00016655,2]
[350770022,1738116640759,-500.0,0.00016655,2]
[350770023,1738116640769,-500.0,0.00016655,2]
[350770024,1738116640779,-500.0,0.00016655,2]
[350770025,1738116640791,-500.0,0.00016655,2]
[350770026,1738116640801,-500.0,0.00016655,2]
[350770027,1738116640811,-500.0,0.00016655,2]
[350770028,1738116640821,-500.0,0.00016655,2]
[350770029,1738116640831,-500.0,0.00016655,2]
[350770030,1738116640842,-500.0,0.00016655,2]
[350770031,1738116640852,-500.0,0.00016655,2]
[350770032,1738116640862,-500.0,0.00016655,2]
[350770033,1738116640872,-622.59707301,0.00016655,2]
[350770034,1738116640883,-500.0,0.00016655,2]
[350770035,1738116640893,-529.39,0.00016655,2]
[350770036,1738116640904,-311.35649978,0.00016655,2]
[350770037,1738116640914,-283.97371001,0.00016655,2]
[350770038,1738116640927,-437.90994804,0.00016655,2]
[350770039,1738116640938,-500.0,0.00016655,2]
[350770040,1738116640948,-512.9,0.00016655,2]
[350770041,1738116640959,-425.05139653,0.00016656,2]
[350770042,1738116640969,-344.16238023,0.00016656,2]
[350770043,1738116640980,-506.42649166,0.00016656,2]
[350770044,1738116640997,-230.9793855,0.00016656,2]
[350770045,1738116641007,-532.70764954,0.00016656,2]
[350770046,1738116641017,-253.1010175,0.00016656,2]
[350770047,1738116641027,-235.55129687,0.00016656,2]
[350770048,1738116641037,-442.25399606,0.00016656,2]
[350770049,1738116641048,-307.11316033,0.00016656,2]
[350770050,1738116641058,-307.48282048,0.00016656,2]
[350770051,1738116641068,-500.0,0.00016656,2]
[350770052,1738116641078,-500.0,0.00016656,2]
[350770053,1738116641088,-267.46506876,0.00016656,2]
[350770054,1738116641098,-4168.17,0.00016656,2]
[350770055,1738116641108,-500.0,0.00016656,2]
[350770056,1738116641120,-620.17236728,0.00016656,2]
[350770057,1738116641130,-257.3729291,0.00016656,2]
[350770058,1738116641140,-242.25693022,0.00016656,2]
[350770059,1738116641150,-500.0,0.00016666,2]
[350770060,1738116641160,-505.2358516,0.00016666,2]
[350770061,1738116641170,-504.4588339,0.00016666,2]
[350770062,1738116641180,-506.27543063,0.00016666,2]
[350770063,1738116641190,-479.61228987,0.00016783,2]
[350770064,1738116641200,-500.0,0.00016783,2]
[350770065,1738116641210,-500.0,0.00016783,2]
[350770066,1738116641219,-500.0,0.00016783,2]
[350770067,1738116641229,-500.0,0.00016791,2]
[350770068,1738116641239,-500.0,0.00016791,2]
[350770069,1738116641248,-500.0,0.00016791,2]
[350770070,1738116641258,-291.494718,0.00016792,2]
[350770071,1738116641268,-500.0,0.00016792,2]
[350770072,1738116641279,-500.0,0.00016792,2]
[350770073,1738116641290,-500.0,0.00016792,2]
[350770074,1738116641300,-468.85109322,0.00016792,2]
[350770075,1738116641309,-500.0,0.00016792,2]
[350770076,1738116641320,-500.0,0.00016792,2]
[350770077,1738116641329,-484.80505758,0.00016792,2]
[350770078,1738116641343,-500.0,0.00016792,2]
[350770079,1738116641354,-500.0,0.00016792,2]
[350770080,1738116641364,-500.0,0.00016792,2]
[350770081,1738116641375,-500.0,0.00016792,2]
[350770082,1738116641385,-529.39,0.00016792,2]
[350770083,1738116641395,-500.0,0.00016792,2]
[350770084,1738116641407,-512.9,0.00016792,2]
[350770085,1738116641417,-529.960005,0.00016793,2]
[350770086,1738116641427,-500.0,0.00016793,2]
[350770087,1738116641438,-4168.17,0.00016793,2]
[350770088,1738116641447,-500.0,0.00016793,2]
[350770089,1738116641457,-500.0,0.00016803,2]
[350770090,1738116641468,-500.0,0.0001692,2]
[350770091,1738116641478,-165.68811601,0.0001692,2]
[350770092,1738116641623,-500.0,0.0001692,2]
[350770093,1738116641634,-639.66289332,0.00016928,2]
[350770094,1738116641644,-500.0,0.00016928,2]
[350770095,1738116641654,-500.0,0.00016928,2]
[350770096,1738116641665,-500.0,0.00016929,2]
[350770097,1738116641675,-500.0,0.00016929,2]
[350770098,1738116641684,-500.0,0.00016929,2]
[350770099,1738116641694,-500.0,0.00016929,2]
[350770100,1738116641704,-500.0,0.00016929,2]
[350770101,1738116641713,-500.0,0.00016929,2]
[350770102,1738116641724,-500.0,0.00016929,2]
[350770103,1738116641734,-500.0,0.00016929,2]
[350770104,1738116641744,-500.0,0.00016929,2]
[350770105,1738116641755,-529.39,0.00016929,2]
[350770106,1738116641765,-500.0,0.00016929,2]
[350770107,1738116641776,-512.9,0.00016929,2]
[350770108,1738116641786,-565.73115642,0.0001693,2]
[350770109,1738116641799,-4168.17,0.0001693,2]
[350770110,1738116641809,-500.0,0.0001693,2]
[350770111,1738116641819,-500.0,0.0001694,2]
[350770112,1738116641830,-420.0,0.00017,2]
[350770113,1738116641840,-500.0,0.00017057,2]
[350770114,1738116641850,-500.0,0.00017057,2]
[350770115,1738116641860,-500.0,0.00017065,2]
[350770116,1738116641870,-500.0,0.00017065,2]
[350770117,1738116641881,-500.0,0.00017066,2]
[350770118,1738116641891,-278.15499503,0.00017066,2]
[350770119,1738116641901,-500.0,0.00017066,2]
[350770120,1738116641912,-500.0,0.00017066,2]
[350770121,1738116641926,-500.0,0.00017066,2]
[350770122,1738116641936,-500.0,0.00017066,2]
[350770123,1738116641946,-500.0,0.00017066,2]
[350770124,1738116641955,-500.0,0.00017066,2]
[350770125,1738116641967,-500.0,0.00017066,2]
[350770126,1738116641977,-529.39,0.00017066,2]
[350770127,1738116641987,-500.0,0.00017066,2]
[350770128,1738116641999,-512.9,0.00017066,2]
[350770129,1738116642009,-4168.17,0.00017067,2]
[350770130,1738116642019,-283.14644301,0.00017067,2]
[350770131,1738116642029,-500.0,0.00017077,2]
[350770132,1738116642038,-215.37295197,0.000171,2]
[350770133,1738116642051,-215.37295196,0.000171,2]
[350770134,1738116642061,-500.0,0.00017194,2]
[350770135,1738116642071,-500.0,0.00017194,2]
[350770136,1738116642081,-500.0,0.00017202,2]
[350770137,1738116642091,-500.0,0.00017202,2]
[350770138,1738116642101,-500.0,0.00017203,2]
[350770139,1738116642110,-500.0,0.00017203,2]
[350770140,1738116642120,-500.0,0.00017203,2]
[350770141,1738116642130,-500.0,0.00017203,2]
[350770142,1738116642140,-500.0,0.00017203,2]
[350770143,1738116642149,-500.0,0.00017203,2]
[350770144,1738116642159,-500.0,0.00017203,2]
[350770145,1738116642168,-500.0,0.00017203,2]
[350770146,1738116642179,-529.39,0.00017203,2]
[350770149,1738116642188,-597.76,0.00017203,2]
[350770152,1738116642198,-512.9,0.00017203,2]
[350770154,1738116642208,-4168.17,0.00017204,2]
[350770157,1738116642217,-500.0,0.00017214,2]
[350770158,1738116642226,-622.59619855,0.00017259,2]
[350770159,1738116642236,-500.8719188,0.00017259,2]
[350770160,1738116642246,-500.0,0.00017331,2]
[350770161,1738116642255,-500.0,0.00017331,2]
[350770162,1738116642265,-500.0,0.00017339,2]
[350770163,1738116642275,-500.0,0.0001734,2]
[350770164,1738116642284,-500.0,0.0001734,2]
[350770165,1738116642295,-500.0,0.0001734,2]
[350770166,1738116642305,-500.0,0.0001734,2]
[350770167,1738116642314,-500.0,0.0001734,2]
[350770168,1738116642323,-500.0,0.0001734,2]
[350770169,1738116642332,-500.0,0.0001734,2]
[350770170,1738116642342,-500.0,0.0001734,2]
[350770171,1738116642351,-529.39,0.0001734,2]
[350770173,1738116642361,-512.9,0.0001734,2]
[350770174,1738116642371,-4168.17,0.00017341,2]
[350770175,1738116642380,-3296.63814742,0.00017351,5]